fUST/lending_fUST_20250408
["ID","MTS","AMOUNT","RATE_DAILY","PERIOD"]
[357466553,1744077042792,-500.0,0.00022191,2]
[357466554,1744077042802,-500.0,0.00022191,2]
[357466555,1744077042812,-500.0,0.00022191,2]
[357466556,1744077042822,-507.97008993,0.00022191,2]
[357466557,1744077042833,-523.98919345,0.00022191,2]
[357466558,1744077042843,-500.0,0.00022191,2]
[357466559,1744077042853,-500.0,0.00022191,2]
[357466560,1744077042863,-1197.82,0.00022191,2]
[357466561,1744077042873,-711.83,0.00022191,2]
[357466562,1744077042883,-500.0,0.00022191,2]
[357466563,1744077042895,-500.0,0.00022191,2]
[357466564,1744077042905,-500.0,0.00022191,2]
[357466565,1744077042917,-1237.52,0.00022191,2]
[357466566,1744077042930,-500.1809741,0.00022191,2]
[357466567,1744077042940,-500.0,0.00022191,2]
[357466568,1744077042950,-500.0,0.00022191,2]
[357466569,1744077042961,-509.66325737,0.00022191,2]
[357466570,1744077042971,-500.0,0.00022191,2]
[357466571,1744077042981,-500.0,0.00022191,2]
[357466572,1744077042992,-816.65,0.00022191,2]
[357466573,1744077043004,-500.0,0.00022191,2]
[357466574,1744077043015,-500.0,0.00022191,2]
[357466575,1744077043025,-500.0,0.00022191,2]
[357466576,1744077043036,-500.0,0.00022191,2]
[357466577,1744077043046,-500.0,0.00022191,2]
[357466578,1744077043062,-500.0,0.00022191,2]
[357466579,1744077043072,-500.0,0.00022191,2]
[357466580,1744077043083,-500.0,0.00022191,2]
[357466581,1744077043094,-500.0,0.00022191,2]
[357466582,1744077043105,-500.0,0.00022191,2]
[357466583,1744077043115,-500.0,0.00022191,2]
[357466584,1744077043125,-500.0,0.00022191,2]
[357466585,1744077043135,-500.0,0.00022191,2]
[357466586,1744077043146,-500.0,0.00022191,2]
[357466587,1744077043156,-500.0,0.00022191,2]
[357466588,1744077043166,-521.4,0.00022191,2]
[357466589,1744077043176,-500.0,0.00022191,2]
[357466590,1744077043186,-677.48,0.00022191,2]
[357466591,1744077043196,-500.0,0.00022191,2]
[357466592,1744077043206,-500.0,0.00022191,2]
[357466593,1744077043216,-500.0,0.00022191,2]
[357466594,1744077043226,-500.0,0.00022191,2]
[357466595,1744077043236,-515.71217314,0.00022191,2]
[357466596,1744077043246,-500.0,0.00022191,2]
[357466597,1744077043256,-1015.63,0.00022191,2]
[357466598,1744077043267,-965.83,0.00022191,2]
[357466600,1744077043276,-500.0,0.00022191,2]
[357466602,1744077043288,-883.8,0.00022191,2]
[357466604,1744077043298,-955.46,0.00022191,2]
[357466607,1744077043309,-500.0,0.00022191,2]
[357466609,1744077043321,-500.0,0.00022191,2]
[357466611,1744077043331,-500.0,0.00022191,2]
[357466613,1744077043341,-2195.18,0.00022191,2]
[357466616,1744077043352,-500.0,0.00022191,2]
[357466617,1744077043362,-500.0,0.00022191,2]
[357466620,1744077043373,-500.0,0.00022191,2]
[357466622,1744077043384,-500.0,0.00022191,2]
[357466623,1744077043394,-500.0,0.00022191,2]
[357466624,1744077043405,-500.0,0.00022191,2]
[357466625,1744077043415,-500.0,0.00022191,2]
[357466626,1744077043426,-1724.47,0.00022191,2]
[357466627,1744077043436,-500.0,0.00022191,2]
[357466628,1744077043446,-500.0,0.00022191,2]
[357466629,1744077043456,-500.0,0.00022191,2]
[357466630,1744077043466,-1673.88,0.00022191,2]
[357466631,1744077043476,-500.0,0.00022191,2]
[357466632,1744077043486,-534.14,0.00022191,2]
[357466633,1744077043496,-300.85,0.00022191,2]
[357466634,1744077043506,-500.0,0.00022191,2]
[357466636,1744077043515,-500.0,0.00022191,2]
[357466637,1744077043525,-500.0,0.00022191,2]
[357466639,1744077043535,-1340.54,0.00022191,2]
[357466641,1744077043546,-500.0,0.00022191,2]
[357466643,1744077043556,-542.01,0.00022191,2]
[357466645,1744077043566,-524.96,0.00022191,2]
[357466647,1744077043575,-500.0,0.00022191,2]
[357466649,1744077043585,-500.0,0.00022191,2]
[357466651,1744077043596,-500.0,0.00022191,2]
[357466653,1744077043607,-730.76,0.00022191,2]
[357466655,1744077043617,-1513.16,0.00022191,2]
[357466657,1744077043627,-2076.71,0.00022191,2]
[357466659,1744077043637,-500.0,0.00022191,2]
[357466661,1744077043647,-2241.86,0.00022191,2]
[357466663,1744077043657,-1276.21,0.00022191,2]
[357466665,1744077043669,-720.44,0.00022191,2]
[357466667,1744077043680,-500.0,0.00022191,2]
[357466670,1744077043690,-2755.26,0.00022191,2]
[357466671,1744077043699,-500.0,0.00022191,2]
[357466674,1744077043710,-500.0,0.00022191,2]
[357466675,1744077043720,-500.0,0.00022191,2]
[357466677,1744077043730,-500.0,0.00022191,2]
[357466679,1744077043740,-500.0,0.00022191,2]
[357466681,1744077043750,-500.0,0.00022191,2]
[357466683,1744077043760,-500.0,0.00022191,2]
[357466685,1744077043770,-500.0,0.00022191,2]
[357466687,1744077043780,-500.0,0.00022191,2]
[357466689,1744077043792,-795.94,0.00022191,2]
[357466691,1744077043802,-500.0,0.00022191,2]
[357466693,1744077043812,-5255.83,0.00022191,2]
[357466695,1744077043822,-1073.11,0.00022191,2]
[357466697,1744077043832,-1335.7,0.00022191,2]
[357466699,1744077043842,-500.0,0.00022191,2]
[357466701,1744077043852,-200.0,0.00022191,2]
[357466703,1744077043863,-500.0,0.00022191,2]
[357466705,1744077043872,-1162.69,0.00022191,2]
[357466707,1744077043882,-500.0,0.00022191,2]
[357466709,1744077043892,-561.08,0.00022191,2]
[357466711,1744077043902,-500.0,0.00022191,2]
[357466713,1744077043913,-563.07982288,0.00022191,2]
[357466715,1744077043923,-1291.27,0.00022191,2]
[357466717,1744077043935,-2979.5,0.00022191,2]
[357466719,1744077043947,-590.76,0.00022191,2]
[357466721,1744077043957,-1401.91,0.00022191,2]
[357466723,1744077043967,-500.0,0.00022191,2]
[357466725,1744077043979,-500.0,0.00022191,2]
[357466727,1744077043990,-500.0,0.00022191,2]
[357466729,1744077044001,-500.0,0.00022191,2]
[357466731,1744077044012,-500.0,0.00022191,2]
[357466733,1744077044022,-500.0,0.00022191,2]
[357466735,1744077044034,-500.0,0.00022191,2]
[357466737,1744077044044,-500.0,0.00022191,2]
[357466739,1744077044054,-500.0,0.00022191,2]
[357466741,1744077044065,-1531.45,0.00022191,2]
[357466743,1744077044079,-500.0,0.00022191,2]
[357466745,1744077044089,-500.0,0.00022191,2]
[357466747,1744077044099,-1855.88,0.00022191,2]
[357466749,1744077044109,-500.0,0.00022191,2]
[357466751,1744077044119,-500.0,0.00022191,2]
[357466753,1744077044129,-1878.37,0.00022191,2]
[357466755,1744077044138,-500.0,0.00022191,2]
[357466756,1744077044148,-500.0,0.00022191,2]
[357466758,1744077044159,-500.0,0.00022191,2]
[357466760,1744077044169,-500.0,0.00022191,2]
[357466762,1744077044179,-500.0,0.00022191,2]
[357466764,1744077044189,-1906.57,0.00022191,2]
[357466766,1744077044198,-500.0,0.00022191,2]
[357466768,1744077044208,-500.0,0.00022191,2]
[357466770,1744077044217,-500.0,0.00022191,2]
[357466772,1744077044227,-500.0,0.00022191,2]
[357466774,1744077044237,-1240.57,0.00022191,2]
[357466776,1744077044247,-1498.13,0.00022191,2]
[357466778,1744077044257,-500.0,0.00022191,2]
[357466780,1744077044267,-500.0,0.00022191,2]
[357466782,1744077044277,-500.0,0.00022191,2]
[357466784,1744077044288,-1165.83,0.00022191,2]
[357466786,1744077044298,-500.0,0.00022191,2]
[357466788,1744077044308,-500.0,0.00022191,2]
[357466789,1744077044318,-500.0,0.00022191,2]
[357466791,1744077044329,-500.0,0.00022191,2]
[357466793,1744077044339,-1184.51,0.00022191,2]
[357466795,1744077044350,-2926.36,0.00022191,2]
[357466797,1744077044360,-1109.48,0.00022191,2]
[357466798,1744077044369,-8763.46,0.00022191,2]
[357466799,1744077044379,-602.81,0.00022191,2]
[357466800,1744077044389,-1118.42,0.00022191,2]
[357466801,1744077044398,-500.0,0.00022191,2]
[357466802,1744077044408,-500.0,0.00022191,2]
[357466803,1744077044418,-500.0,0.00022191,2]
[357466804,1744077044430,-503.7,0.00022191,2]
[357466805,1744077044440,-500.0,0.00022191,2]
[357466806,1744077044450,-500.0,0.00022191,2]
[357466807,1744077044460,-500.0,0.00022191,2]
[357466808,1744077044470,-1780.71,0.00022191,2]
[357466809,1744077044480,-520.28919712,0.00022191,2]
[357466810,1744077044490,-500.0,0.00022191,2]
[357466811,1744077044500,-1494.33,0.00022191,2]
[357466812,1744077044510,-2426.96,0.00022191,2]
[357466813,1744077044520,-853.03,0.00022191,2]
[357466814,1744077044530,-500.0,0.00022191,2]
[357466815,1744077044541,-500.0,0.00022191,2]
[357466816,1744077044550,-500.0,0.00022191,2]
[357466817,1744077044560,-1136.31,0.00022191,2]
[357466818,1744077044570,-500.0,0.00022191,2]
[357466819,1744077044579,-2088.72,0.00022191,2]
[357466820,1744077044588,-500.0,0.00022191,2]
[357466821,1744077044598,-1347.03,0.00022191,2]
[357466822,1744077044607,-500.0,0.00022191,2]
[357466823,1744077044617,-152.0,0.00022194,2]
[357466824,1744077044627,-1541.80800726,0.00022274,2]
[357466825,1744077044637,-500.0,0.00022465,2]
[357466826,1744077044647,-500.0,0.00022465,2]
[357466827,1744077044657,-505.48,0.00022465,2]
[357466828,1744077044666,-500.0,0.00022465,2]
[357466829,1744077044676,-549.37,0.00022465,2]
[357466830,1744077044685,-989.79,0.00022465,2]
[357466831,1744077044695,-375.96568439,0.00022465,2]
[357466832,1744077044704,-500.0,0.00022465,2]
[357466833,1744077044713,-500.0,0.00022465,2]
[357466834,1744077044723,-500.0,0.00022465,2]
[357466835,1744077044733,-500.0,0.00022465,2]
[357466836,1744077044742,-571.51,0.00022465,2]
[357466837,1744077044752,-500.0,0.00022465,2]
[357466838,1744077044762,-500.0,0.00022465,2]
[357466839,1744077044772,-500.0,0.00022465,2]
[357466840,1744077044781,-500.0,0.00022465,2]
[357466841,1744077044792,-375.22860736,0.00022465,2]
[357466842,1744077044802,-500.0,0.00022465,2]
[357466843,1744077044811,-500.0,0.00022465,2]
[357466844,1744077044821,-171.15245186,0.00022465,2]
[357466845,1744077044830,-500.0,0.00022465,2]
[357466846,1744077044925,-509.65834755,0.00022465,2]
[357466847,1744077044935,-500.0,0.00022465,2]
[357466848,1744077044944,-500.0,0.00022465,2]
[357466849,1744077044954,-331.93918513,0.00022465,2]
[357466850,1744077044965,-503.39729275,0.00022465,2]
[357466851,1744077044975,-500.0,0.00022465,2]
[357466852,1744077044984,-500.0,0.00022465,2]
[357466853,1744077044993,-500.0,0.00022465,2]
[357466854,1744077045003,-500.0,0.00022465,2]
[357466855,1744077045014,-500.0,0.00022465,2]
[357466856,1744077045024,-500.0,0.00022465,2]
[357466857,1744077045035,-520.89,0.00022465,2]
[357466858,1744077045046,-500.0,0.00022465,2]
[357466859,1744077045055,-500.0,0.00022465,2]
[357466860,1744077045065,-500.0,0.00022465,2]
[357466861,1744077045075,-500.0,0.00022465,2]
[357466862,1744077045084,-500.0,0.00022465,2]
[357466863,1744077045094,-500.0,0.00022465,2]
[357466864,1744077045103,-1231.93,0.00022465,2]
[357466865,1744077045112,-512.91102725,0.00022465,2]
[357466866,1744077045122,-510.90305997,0.00022465,2]
[357466867,1744077045131,-506.51703646,0.00022465,2]
[357466868,1744077045140,-500.0,0.00022465,2]
[357466869,1744077045149,-612.52,0.00022465,2]
[357466870,1744077045159,-500.0,0.00022465,2]
[357466871,1744077045168,-954.53,0.00022465,2]
[357466872,1744077045177,-500.0,0.00022465,2]
[357466873,1744077045186,-501.24,0.00022465,2]
[357466874,1744077045197,-943.13,0.00022465,2]
[357466875,1744077045207,-514.07067161,0.00022465,2]
[357466876,1744077045216,-500.0,0.00022465,2]
[357466877,1744077045226,-643.13,0.00022465,2]
[357466878,1744077045235,-500.0,0.00022465,2]
[357466879,1744077045244,-500.0,0.00022465,2]
[357466880,1744077045254,-500.0,0.00022465,2]
[357466881,1744077045263,-500.0,0.00022465,2]
[357466882,1744077045272,-500.0,0.00022465,2]
[357466883,1744077045282,-287.45188397,0.00022465,2]
[357466884,1744077045294,-1197.82,0.00022465,2]
[357466885,1744077045304,-711.83,0.00022465,2]
[357466886,1744077045314,-500.0,0.00022465,2]
[357466887,1744077045324,-251.89398279,0.00022465,2]
[357466888,1744077045333,-573.47850502,0.00022465,2]
[357466889,1744077045343,-1237.52,0.00022465,2]
[357466890,1744077045353,-500.0,0.00022465,2]
[357466891,1744077045363,-500.0,0.00022465,2]
[357466892,1744077045373,-500.0,0.00022465,2]
[357466893,1744077045383,-185.51951348,0.00022465,2]
[357466895,1744077045393,-816.65,0.00022465,2]
[357466896,1744077045404,-500.0,0.00022465,2]
[357466898,1744077045414,-500.6466672,0.00022465,2]
[357466899,1744077045424,-500.0,0.00022465,2]
[357466900,1744077045435,-500.0,0.00022465,2]
[357466901,1744077045446,-500.0,0.00022465,2]
[357466902,1744077045456,-500.0,0.00022465,2]
[357466903,1744077045466,-500.0,0.00022465,2]
[357466904,1744077045476,-500.0,0.00022465,2]
[357466905,1744077045486,-507.68011418,0.00022465,2]
[357466906,1744077045496,-500.0,0.00022465,2]
[357466907,1744077045506,-466.67446106,0.00022465,2]
[357466908,1744077045516,-500.0,0.00022465,2]
[357466909,1744077045525,-500.0,0.00022465,2]
[357466910,1744077045537,-500.0,0.00022465,2]
[357466912,1744077045546,-500.0,0.00022465,2]
[357466914,1744077045556,-521.4,0.00022465,2]
[357466916,1744077045566,-500.0,0.00022465,2]
[357466918,1744077045576,-677.48,0.00022465,2]
[357466919,1744077045586,-500.0,0.00022465,2]
[357466921,1744077045596,-500.0,0.00022465,2]
[357466922,1744077045606,-500.0,0.00022465,2]
[357466923,1744077045616,-500.0,0.00022465,2]
[357466924,1744077045626,-516.29878836,0.00022465,2]
[357466925,1744077045636,-1015.63,0.00022465,2]
[357466926,1744077045646,-965.83,0.00022465,2]
[357466927,1744077045657,-500.0,0.00022465,2]
[357466928,1744077045667,-883.8,0.00022465,2]
[357466929,1744077045677,-955.46,0.00022465,2]
[357466930,1744077045687,-500.0,0.00022465,2]
[357466931,1744077045697,-500.0,0.00022465,2]
[357466932,1744077045707,-500.0,0.00022465,2]
[357466933,1744077045717,-2195.18,0.00022465,2]
[357466934,1744077045726,-500.0,0.00022465,2]
[357466935,1744077045736,-500.0,0.00022465,2]
[357466936,1744077045746,-500.0,0.00022465,2]
[357466937,1744077045755,-500.0,0.00022465,2]
[357466938,1744077045766,-500.0,0.00022465,2]
[357466939,1744077045776,-500.0,0.00022465,2]
[357466940,1744077045787,-500.0,0.00022465,2]
[357466941,1744077045798,-1724.47,0.00022465,2]
[357466942,1744077045808,-500.0,0.00022465,2]
[357466943,1744077045818,-500.0,0.00022465,2]
[357466944,1744077045828,-500.0,0.00022465,2]
[357466945,1744077045838,-1673.88,0.00022465,2]
[357466946,1744077045848,-500.0,0.00022465,2]
[357466947,1744077045858,-534.14,0.00022465,2]
[357466948,1744077045867,-500.0,0.00022465,2]
[357466949,1744077045877,-500.0,0.00022465,2]
[357466950,1744077045887,-500.0,0.00022465,2]
[357466951,1744077045898,-1340.54,0.00022465,2]
[357466952,1744077045908,-500.0,0.00022465,2]
[357466953,1744077045919,-542.01,0.00022465,2]
[357466954,1744077045931,-524.96,0.00022465,2]
[357466955,1744077045950,-500.0,0.00022465,2]
[357466956,1744077045961,-500.0,0.00022465,2]
[357466957,1744077045971,-500.0,0.00022465,2]
[357466958,1744077045982,-730.76,0.00022465,2]
[357466959,1744077045992,-1513.16,0.00022465,2]
[357466960,1744077046002,-2076.71,0.00022465,2]
[357466961,1744077046012,-500.0,0.00022465,2]
[357466962,1744077046022,-2241.86,0.00022465,2]
[357466963,1744077046033,-1276.21,0.00022465,2]
[357466964,1744077046043,-720.44,0.00022465,2]
[357466966,1744077046053,-500.0,0.00022465,2]
[357466968,1744077046064,-2755.26,0.00022465,2]
[357466969,1744077046074,-500.0,0.00022465,2]
[357466970,1744077046084,-500.0,0.00022465,2]
[357466971,1744077046094,-500.0,0.00022465,2]
[357466973,1744077046104,-500.0,0.00022465,2]
[357466975,1744077046113,-500.0,0.00022465,2]
[357466976,1744077046124,-500.0,0.00022465,2]
[357466978,1744077046141,-500.0,0.00022465,2]
[357466979,1744077046156,-500.0,0.00022465,2]
[357466981,1744077046166,-500.0,0.00022465,2]
[357466983,1744077046176,-795.94,0.00022465,2]
[357466984,1744077046186,-500.0,0.00022465,2]
[357466985,1744077046196,-5255.83,0.00022465,2]
[357466986,1744077046205,-1073.11,0.00022465,2]
[357466988,1744077046214,-1335.7,0.00022465,2]
[357466990,1744077046224,-500.0,0.00022465,2]
[357466992,1744077046234,-200.0,0.00022465,2]
[357466993,1744077046243,-500.0,0.00022465,2]
[357466995,1744077046253,-1162.69,0.00022465,2]
[357466997,1744077046262,-500.0,0.00022465,2]
[357466998,1744077046272,-561.08,0.00022465,2]
[357466999,1744077046282,-500.0,0.00022465,2]
[357467000,1744077046294,-1291.27,0.00022465,2]
[357467001,1744077046304,-2979.5,0.00022465,2]
[357467002,1744077046314,-590.76,0.00022465,2]
[357467003,1744077046323,-1401.91,0.00022465,2]
[357467004,1744077046334,-500.0,0.00022465,2]
[357467005,1744077046343,-500.0,0.00022465,2]
[357467006,1744077046354,-500.0,0.00022465,2]
[357467007,1744077046365,-500.0,0.00022465,2]
[357467008,1744077046375,-500.0,0.00022465,2]
[357467009,1744077046386,-500.0,0.00022465,2]
[357467010,1744077046396,-500.0,0.00022465,2]
[357467011,1744077046406,-500.0,0.00022465,2]
[357467012,1744077046416,-500.0,0.00022465,2]
[357467013,1744077046426,-1531.45,0.00022465,2]
[357467014,1744077046435,-500.0,0.00022465,2]
[357467015,1744077046445,-500.0,0.00022465,2]
[357467016,1744077046455,-1855.88,0.00022465,2]
[357467017,1744077046465,-500.0,0.00022465,2]
[357467018,1744077046474,-500.0,0.00022465,2]
[357467019,1744077046484,-1878.37,0.00022465,2]
[357467020,1744077046494,-500.0,0.00022465,2]
[357467021,1744077046504,-500.0,0.00022465,2]
[357467022,1744077046514,-500.0,0.00022465,2]
[357467023,1744077046524,-500.0,0.00022465,2]
[357467024,1744077046535,-631.31216223,0.00022465,2]
[357467025,1744077046546,-1906.57,0.00022465,2]
[357467026,1744077046556,-500.0,0.00022465,2]
[357467027,1744077046566,-500.0,0.00022465,2]
[357467028,1744077046576,-500.0,0.00022465,2]
[357467029,1744077046586,-540.60496652,0.00022465,2]
[357467030,1744077046597,-1240.57,0.00022465,2]
[357467031,1744077046607,-1498.13,0.00022465,2]
[357467032,1744077046617,-500.0,0.00022465,2]
[357467033,1744077046627,-500.0,0.00022465,2]
[357467034,1744077046637,-500.0,0.00022465,2]
[357467035,1744077046647,-1165.83,0.00022465,2]
[357467036,1744077046656,-500.0,0.00022465,2]
[357467037,1744077046667,-500.0,0.00022465,2]
[357467038,1744077046677,-500.0,0.00022465,2]
[357467039,1744077046687,-500.0,0.00022465,2]
[357467040,1744077046698,-1184.51,0.00022465,2]
[357467041,1744077046708,-2926.36,0.00022465,2]
[357467042,1744077046718,-1109.48,0.00022465,2]
[357467043,1744077046728,-8763.46,0.00022465,2]
[357467044,1744077046738,-602.81,0.00022465,2]
[357467045,1744077046748,-1118.42,0.00022465,2]
[357467046,1744077046758,-500.0,0.00022465,2]
[357467047,1744077046768,-500.0,0.00022465,2]
[357467048,1744077046778,-500.0,0.00022465,2]
[357467049,1744077046790,-503.7,0.00022465,2]
[357467050,1744077046801,-500.0,0.00022465,2]
[357467051,1744077046811,-500.0,0.00022465,2]
[357467052,1744077046821,-500.0,0.00022465,2]
[357467053,1744077046831,-1780.71,0.00022465,2]
[357467054,1744077046840,-500.0,0.00022465,2]
[357467055,1744077046851,-1494.33,0.00022465,2]
[357467056,1744077046861,-2426.96,0.00022465,2]
[357467057,1744077046870,-853.03,0.00022465,2]
[357467058,1744077046880,-500.0,0.00022465,2]
[357467059,1744077046891,-500.0,0.00022465,2]
[357467060,1744077046901,-500.0,0.00022465,2]
[357467061,1744077046911,-1136.31,0.00022465,2]
[357467062,1744077046926,-500.0,0.00022465,2]
[357467063,1744077046936,-2088.72,0.00022465,2]
[357467064,1744077046947,-500.0,0.00022465,2]
[357467065,1744077046959,-1347.03,0.00022465,2]
[357467066,1744077046977,-514.4340115,0.00022465,2]
[357467067,1744077046993,-500.0,0.00022473,2]
[357467068,1744077047006,-500.0,0.00022739,2]
[357467069,1744077047024,-500.0,0.00022739,2]
[357467070,1744077047035,-505.48,0.00022739,2]
[357467071,1744077047046,-500.0,0.00022739,2]
[357467072,1744077047056,-549.37,0.00022739,2]
[357467073,1744077047067,-989.79,0.00022739,2]
[357467074,1744077047078,-500.0,0.00022739,2]
[357467075,1744077047088,-500.0,0.00022739,2]
[357467076,1744077047099,-500.0,0.00022739,2]
[357467077,1744077047109,-500.0,0.00022739,2]
[357467078,1744077047119,-571.51,0.00022739,2]
[357467079,1744077047130,-500.0,0.00022739,2]
[357467080,1744077047142,-500.0,0.00022739,2]
[357467081,1744077047153,-500.0,0.00022739,2]
[357467082,1744077047165,-500.0,0.00022739,2]
[357467083,1744077047175,-500.0,0.00022739,2]
[357467084,1744077047187,-500.0,0.00022739,2]
[357467085,1744077047198,-500.0,0.00022739,2]
[357467086,1744077047209,-500.0,0.00022739,2]
[357467087,1744077047219,-500.0,0.00022739,2]
[357467088,1744077047230,-500.0,0.00022739,2]
[357467089,1744077047241,-500.0,0.00022739,2]
[357467090,1744077047252,-500.0,0.00022739,2]
[357467091,1744077047263,-500.0,0.00022739,2]
[357467092,1744077047275,-500.0,0.00022739,2]
[357467093,1744077047289,-500.0,0.00022739,2]
[357467094,1744077047300,-520.89,0.00022739,2]
[357467095,1744077047311,-156.80660021,0.00022739,2]
[357467096,1744077047323,-500.0,0.00022739,2]
[357467097,1744077047334,-500.0,0.00022739,2]
[357467098,1744077047344,-500.0,0.00022739,2]
[357467099,1744077047355,-500.0,0.00022739,2]
[357467100,1744077047367,-500.0,0.00022739,2]
[357467101,1744077047378,-1231.93,0.00022739,2]
[357467102,1744077047388,-500.0,0.00022739,2]
[357467103,1744077047399,-612.52,0.00022739,2]
[357467104,1744077047410,-500.0,0.00022739,2]
[357467105,1744077047421,-954.53,0.00022739,2]
[357467106,1744077047432,-500.0,0.00022739,2]
[357467107,1744077047443,-501.24,0.00022739,2]
[357467108,1744077047453,-943.13,0.00022739,2]
[357467109,1744077047464,-500.0,0.00022739,2]
[357467110,1744077047475,-643.13,0.00022739,2]
[357467111,1744077047487,-500.0,0.00022739,2]
[357467112,1744077047499,-500.0,0.00022739,2]
[357467113,1744077047510,-500.0,0.00022739,2]
[357467114,1744077047521,-500.0,0.00022739,2]
[357467115,1744077047531,-500.0,0.00022739,2]
[357467116,1744077047543,-1197.82,0.00022739,2]
[357467117,1744077047554,-711.83,0.00022739,2]
[357467118,1744077047565,-500.0,0.00022739,2]
[357467119,1744077047576,-1237.52,0.00022739,2]
[357467120,1744077047587,-500.0,0.00022739,2]
[357467121,1744077047598,-500.0,0.00022739,2]
[357467122,1744077047609,-500.0,0.00022739,2]
[357467123,1744077047620,-816.65,0.00022739,2]
[357467124,1744077047630,-500.0,0.00022739,2]
[357467125,1744077047645,-500.0,0.00022739,2]
[357467126,1744077047655,-500.0,0.00022739,2]
[357467127,1744077047667,-500.0,0.00022739,2]
[357467128,1744077047677,-500.0,0.00022739,2]
[357467129,1744077047688,-500.0,0.00022739,2]
[357467130,1744077047698,-500.0,0.00022739,2]
[357467131,1744077047709,-500.0,0.00022739,2]
[357467132,1744077047719,-500.0,0.00022739,2]
[357467133,1744077047730,-500.0,0.00022739,2]
[357467134,1744077047740,-500.0,0.00022739,2]
[357467135,1744077047751,-500.0,0.00022739,2]
[357467136,1744077047761,-521.4,0.00022739,2]
[357467137,1744077047771,-500.0,0.00022739,2]
[357467138,1744077047781,-677.48,0.00022739,2]
[357467139,1744077047793,-500.0,0.00022739,2]
[357467140,1744077047804,-500.0,0.00022739,2]
[357467141,1744077047815,-500.0,0.00022739,2]
[357467142,1744077047827,-518.98233638,0.00022739,2]
[357467143,1744077047838,-1015.63,0.00022739,2]
[357467144,1744077047849,-965.83,0.00022739,2]
[357467145,1744077047859,-500.0,0.00022739,2]
[357467146,1744077047870,-883.8,0.00022739,2]
[357467147,1744077047881,-955.46,0.00022739,2]
[357467148,1744077047891,-500.0,0.00022739,2]
[357467149,1744077047901,-500.0,0.00022739,2]
[357467150,1744077047912,-500.0,0.00022739,2]
[357467151,1744077047928,-2195.18,0.00022739,2]
[357467152,1744077047947,-500.0,0.00022739,2]
[357467153,1744077047958,-500.0,0.00022739,2]
[357467154,1744077047971,-500.0,0.00022739,2]
[357467155,1744077047981,-513.38290688,0.00022739,2]
[357467156,1744077047992,-500.0,0.00022739,2]
[357467157,1744077048003,-500.0,0.00022739,2]
[357467158,1744077048017,-500.0,0.00022739,2]
[357467159,1744077048028,-1724.47,0.00022739,2]
[357467160,1744077048039,-500.0,0.00022739,2]
[357467161,1744077048050,-500.0,0.00022739,2]
[357467162,1744077048061,-500.0,0.00022739,2]
[357467163,1744077048072,-1673.88,0.00022739,2]
[357467164,1744077048083,-500.0,0.00022739,2]